[Event "Late-Titled-Tuesday-Blitz-April-23-2024"]
[Site "Chess.com"]
[Date "2024.04.23"]
[Round "9"]
[White "WoolworthsManly"]
[Black "Brahianzevich"]
[Result "0-1"]
[WhiteElo "2657"]
[BlackElo "2480"]
[TimeControl "180+1"]
[EndTime "15:47:34 PDT"]
[Termination "Brahianzevich won by resignation"]

1. e4 {[%clk 0:02:58.2]} 1... c5 {[%clk 0:02:59.4]} 2. Nf3 {[%clk 0:02:56.8]}
2... d6 {[%clk 0:02:59.8]} 3. d4 {[%clk 0:02:55.7]} 3... cxd4 {[%clk 0:03:00.7]}
4. Nxd4 {[%clk 0:02:56.2]} 4... Nf6 {[%clk 0:03:01]} 5. Nc3 {[%clk 0:02:47.3]}
5... a6 {[%clk 0:02:56.9]} 6. Bg5 {[%clk 0:02:42.8]} 6... e6 {[%clk 0:02:54.6]}
7. Qf3 {[%clk 0:02:37.1]} 7... Be7 {[%clk 0:02:48]} 8. O-O-O {[%clk 0:02:33.6]}
8... Qa5 {[%clk 0:02:38.7]} 9. h4 {[%clk 0:02:28.8]} 9... Nbd7 {[%clk
0:02:28.8]} 10. Kb1 {[%clk 0:02:20.5]} 10... h6 {[%clk 0:02:04.2]} 11. Bd2
{[%clk 0:01:56.2]} 11... Qc7 {[%clk 0:02:01.7]} 12. g4 {[%clk 0:01:49.1]} 12...
Ne5 {[%clk 0:01:56.5]} 13. Qg3 {[%clk 0:01:48.6]} 13... Nexg4 {[%clk 0:01:56.3]}
14. f3 {[%clk 0:01:44.4]} 14... Ne5 {[%clk 0:01:49.1]} 15. Qxg7 {[%clk
0:01:38.1]} 15... Rg8 {[%clk 0:01:48]} 16. Qxh6 {[%clk 0:01:37.8]} 16... b5
{[%clk 0:01:47.9]} 17. Qe3 {[%clk 0:01:06.4]} 17... Bb7 {[%clk 0:01:24.8]} 18.
Be2 {[%clk 0:01:06.4]} 18... Nc4 {[%clk 0:01:21.3]} 19. Bxc4 {[%clk 0:01:05.7]}
19... Qxc4 {[%clk 0:01:22.2]} 20. Rdg1 {[%clk 0:01:00.9]} 20... O-O-O {[%clk
0:01:16]} 21. Rxg8 {[%clk 0:00:59.8]} 21... Rxg8 {[%clk 0:01:14.9]} 22. h5
{[%clk 0:00:57.6]} 22... d5 {[%clk 0:01:10.9]} 23. e5 {[%clk 0:00:55.7]} 23...
Nd7 {[%clk 0:01:08.9]} 24. h6 {[%clk 0:00:51.6]} 24... Qc7 {[%clk 0:01:05.7]}
25. h7 {[%clk 0:00:51.2]} 25... Rh8 {[%clk 0:01:04]} 26. f4 {[%clk 0:00:47.2]}
26... Nb6 {[%clk 0:01:02.4]} 27. b3 {[%clk 0:00:46.2]} 27... Bc5 {[%clk
0:00:55.7]} 28. Nce2 {[%clk 0:00:46]} 28... Nd7 {[%clk 0:00:52.9]} 29. Qg3
{[%clk 0:00:45.3]} 29... Qd8 {[%clk 0:00:50.7]} 30. Qg7 {[%clk 0:00:38.3]} 30...
Qf8 {[%clk 0:00:48.6]} 31. Qg5 {[%clk 0:00:31.8]} 31... Be7 {[%clk 0:00:41.5]}
32. Qg3 {[%clk 0:00:29.5]} 32... Nc5 {[%clk 0:00:41.5]} 33. f5 {[%clk
0:00:20.4]} 33... Ne4 {[%clk 0:00:39.9]} 34. Qd3 {[%clk 0:00:20.8]} 34... Nf2
{[%clk 0:00:35.2]} 35. Qc3+ {[%clk 0:00:19.1]} 35... Kb8 {[%clk 0:00:36]} 36.
Rh2 {[%clk 0:00:16.8]} 36... Ne4 {[%clk 0:00:33.1]} 37. Qd3 {[%clk 0:00:17.1]}
37... Nxd2+ {[%clk 0:00:24.7]} 38. Qxd2 {[%clk 0:00:17.1]} 38... Qg7 {[%clk
0:00:23.4]} 39. f6 {[%clk 0:00:16.1]} 39... Bxf6 {[%clk 0:00:21.7]} 40. exf6
{[%clk 0:00:16.3]} 40... Qxf6 {[%clk 0:00:22.6]} 41. Qf4+ {[%clk 0:00:16.4]}
41... Qxf4 {[%clk 0:00:22.3]} 42. Nxf4 {[%clk 0:00:17.3]} 42... e5 {[%clk
0:00:22.5]} 43. Nf3 {[%clk 0:00:11.2]} 43... exf4 {[%clk 0:00:21.8]} 44. Ng5
{[%clk 0:00:11.3]} 44... f3 {[%clk 0:00:17.3]} 45. Rf2 {[%clk 0:00:07.9]} 45...
d4 {[%clk 0:00:16.3]} 46. Rd2 {[%clk 0:00:05]} 46... f6 {[%clk 0:00:16.2]} 47.
Ne6 {[%clk 0:00:03.7]} 47... Rxh7 {[%clk 0:00:15.8]} 48. Nxd4 {[%clk 0:00:04.6]}
48... Rh1+ {[%clk 0:00:14.9]} 49. Kb2 {[%clk 0:00:04.5]} 49... Rf1 {[%clk
0:00:12.4]} 50. Nf5 {[%clk 0:00:03.7]} 50... Re1 {[%clk 0:00:10.2]} 51. Rf2
{[%clk 0:00:02.9]} 51... Re2 {[%clk 0:00:09.4]} 52. Rf1 {[%clk 0:00:01.5]} 52...
Be4 {[%clk 0:00:09.3]} 53. Nd4 {[%clk 0:00:01.4]} 53... Rg2 {[%clk 0:00:09.1]}
54. Nxf3 {[%clk 0:00:01.7]} 54... Rxc2+ {[%clk 0:00:08.8]} 55. Ka3 {[%clk
0:00:02.4]} 55... a5 {[%clk 0:00:08.6]} 56. Nd4 {[%clk 0:00:02.4]} 56... b4+
{[%clk 0:00:07.6]} 57. Ka4 {[%clk 0:00:03.1]} 57... Rxa2+ {[%clk 0:00:07.4]} 58.
Kb5 {[%clk 0:00:03.8]} 58... Bd3+ {[%clk 0:00:08]} 59. Kb6 {[%clk 0:00:03.8]}
59... Bxf1 {[%clk 0:00:08.9]} 60. Nc6+ {[%clk 0:00:03.6]} 60... Kc8 {[%clk
0:00:09]} 61. Nxa5 {[%clk 0:00:04.5]} 61... Kd7 {[%clk 0:00:07.8]} 62. Nb7
{[%clk 0:00:04.6]} 62... Ra6+ {[%clk 0:00:07.2]} 63. Kc5 {[%clk 0:00:04.3]}
63... Rc6+ {[%clk 0:00:07.2]} 64. Kd5 {[%clk 0:00:04.3]} 64... Bg2+ {[%clk
0:00:06.4]} 65. Kd4 {[%clk 0:00:04.3]} 65... Rd6+ {[%clk 0:00:06]} 66. Kc5
{[%clk 0:00:03.7]} 66... Bxb7 {[%clk 0:00:05.1]} 67. Kxb4 {[%clk 0:00:03.7]}
67... f5 {[%clk 0:00:05.5]} 68. Kc3 {[%clk 0:00:04.6]} 68... f4 {[%clk
0:00:06.4]} 0-1

[Event "Late-Titled-Tuesday-Blitz-April-23-2024"]
[Site "Chess.com"]
[Date "2024.04.23"]
[Round "9"]
[White "andrew-blr"]
[Black "alexrustemov"]
[Result "0-1"]
[WhiteElo "2637"]
[BlackElo "2852"]
[TimeControl "180+1"]
[EndTime "15:47:57 PDT"]
[Termination "alexrustemov won by checkmate"]

1. d4 {[%clk 0:03:00.9]} 1... d5 {[%clk 0:02:59.8]} 2. c4 {[%clk 0:02:59.6]}
2... dxc4 {[%clk 0:03:00.1]} 3. e3 {[%clk 0:02:59]} 3... Nf6 {[%clk 0:03:00.2]}
4. Bxc4 {[%clk 0:02:58.2]} 4... e6 {[%clk 0:03:00.5]} 5. Nf3 {[%clk 0:02:58.1]}
5... c5 {[%clk 0:03:00.9]} 6. O-O {[%clk 0:02:57.9]} 6... a6 {[%clk 0:03:01.1]}
7. Qe2 {[%clk 0:02:58]} 7... b5 {[%clk 0:03:00.3]} 8. Bb3 {[%clk 0:02:57.6]}
8... Bb7 {[%clk 0:03:00.5]} 9. Rd1 {[%clk 0:02:55.6]} 9... Nbd7 {[%clk
0:03:00.1]} 10. a4 {[%clk 0:02:53.2]} 10... Qb8 {[%clk 0:02:58.5]} 11. axb5
{[%clk 0:02:50.5]} 11... axb5 {[%clk 0:02:58.3]} 12. Rxa8 {[%clk 0:02:47.5]}
12... Bxa8 {[%clk 0:02:59.2]} 13. Nc3 {[%clk 0:02:39.9]} 13... b4 {[%clk
0:02:58.1]} 14. Na4 {[%clk 0:02:33.1]} 14... Be7 {[%clk 0:02:46.1]} 15. Nxc5
{[%clk 0:02:19.1]} 15... Bxc5 {[%clk 0:02:35.6]} 16. dxc5 {[%clk 0:02:16.5]}
16... Nxc5 {[%clk 0:02:36.5]} 17. Bc4 {[%clk 0:02:01.8]} 17... O-O {[%clk
0:02:36.1]} 18. Nd4 {[%clk 0:02:01.3]} 18... Rd8 {[%clk 0:02:21]} 19. f3 {[%clk
0:01:59.6]} 19... Bd5 {[%clk 0:01:58.3]} 20. Bd2 {[%clk 0:01:50.4]} 20... Qb7
{[%clk 0:01:49.2]} 21. Rc1 {[%clk 0:00:57.4]} 21... Qb6 {[%clk 0:01:27.1]} 22.
Be1 {[%clk 0:00:45.4]} 22... h6 {[%clk 0:01:25.6]} 23. Bf2 {[%clk 0:00:45.3]}
23... Bxc4 {[%clk 0:01:17.6]} 24. Qxc4 {[%clk 0:00:45]} 24... Na4 {[%clk
0:01:13.8]} 25. Qb3 {[%clk 0:00:38.7]} 25... Nc5 {[%clk 0:01:10.7]} 26. Qc2
{[%clk 0:00:38.3]} 26... Ncd7 {[%clk 0:01:07.3]} 27. e4 {[%clk 0:00:38.2]} 27...
Qa6 {[%clk 0:00:59.4]} 28. Qc4 {[%clk 0:00:33.3]} 28... Qa4 {[%clk 0:00:51.5]}
29. Nc6 {[%clk 0:00:28]} 29... Ra8 {[%clk 0:00:49.9]} 30. h4 {[%clk 0:00:24]}
30... b3 {[%clk 0:00:44.9]} 31. Qxa4 {[%clk 0:00:21.9]} 31... Rxa4 {[%clk
0:00:45.8]} 32. Rc3 {[%clk 0:00:21.2]} 32... Ra1+ {[%clk 0:00:37.7]} 33. Kh2
{[%clk 0:00:20.6]} 33... Ra6 {[%clk 0:00:28.1]} 34. Nd8 {[%clk 0:00:19.8]} 34...
Ne5 {[%clk 0:00:24.8]} 35. Rc8 {[%clk 0:00:18.9]} 35... Kh7 {[%clk 0:00:23]} 36.
Bd4 {[%clk 0:00:18.9]} 36... Nfd7 {[%clk 0:00:16.1]} 37. Rc7 {[%clk 0:00:15.1]}
37... f6 {[%clk 0:00:15.2]} 38. f4 {[%clk 0:00:12]} 38... Ng4+ {[%clk
0:00:11.1]} 39. Kg3 {[%clk 0:00:11.7]} 39... Rd6 {[%clk 0:00:09.5]} 40. Bc3
{[%clk 0:00:10.8]} 40... h5 {[%clk 0:00:09.1]} 41. Kf3 {[%clk 0:00:10.2]} 41...
Rd3+ {[%clk 0:00:08.8]} 42. Ke2 {[%clk 0:00:10.5]} 42... Re3+ {[%clk 0:00:09.2]}
43. Kd2 {[%clk 0:00:10.7]} 43... Nf8 {[%clk 0:00:09.1]} 44. Rf7 {[%clk
0:00:10.1]} 44... Kg8 {[%clk 0:00:08.7]} 45. Re7 {[%clk 0:00:08.9]} 45... Rg3
{[%clk 0:00:07.7]} 46. Nxe6 {[%clk 0:00:08.8]} 46... Nxe6 {[%clk 0:00:07.9]} 47.
Rxe6 {[%clk 0:00:08.7]} 47... Rxg2+ {[%clk 0:00:08.8]} 48. Kd3 {[%clk
0:00:09.3]} 48... Kf7 {[%clk 0:00:09.2]} 49. Rb6 {[%clk 0:00:08.9]} 49... Rh2
{[%clk 0:00:09.4]} 50. Rxb3 {[%clk 0:00:08.5]} 50... Rxh4 {[%clk 0:00:09.2]} 51.
f5 {[%clk 0:00:09]} 51... Rh3+ {[%clk 0:00:07.6]} 52. Kc4 {[%clk 0:00:09.2]}
52... h4 {[%clk 0:00:08]} 53. Rb8 {[%clk 0:00:08.6]} 53... g6 {[%clk 0:00:06.7]}
54. fxg6+ {[%clk 0:00:07.7]} 54... Kxg6 {[%clk 0:00:06.9]} 55. Rg8+ {[%clk
0:00:07.5]} 55... Kh5 {[%clk 0:00:06.6]} 56. b4 {[%clk 0:00:05.7]} 56... Rg3
{[%clk 0:00:07]} 57. b5 {[%clk 0:00:06]} 57... Ne5+ {[%clk 0:00:07.2]} 58. Bxe5
{[%clk 0:00:05.5]} 58... Rxg8 {[%clk 0:00:07.9]} 59. Bd6 {[%clk 0:00:04.2]}
59... Rc8+ {[%clk 0:00:05.3]} 60. Kd5 {[%clk 0:00:04]} 60... Rd8 {[%clk
0:00:05.3]} 61. b6 {[%clk 0:00:04.3]} 61... h3 {[%clk 0:00:05.8]} 62. Kc6 {[%clk
0:00:04.3]} 62... Rxd6+ {[%clk 0:00:03.4]} 63. Kxd6 {[%clk 0:00:04.5]} 63... h2
{[%clk 0:00:04.1]} 64. e5 {[%clk 0:00:05.4]} 64... h1=Q {[%clk 0:00:04.2]} 65.
exf6 {[%clk 0:00:05.9]} 65... Kg6 {[%clk 0:00:04.2]} 66. Kc7 {[%clk 0:00:05.9]}
66... Qc1+ {[%clk 0:00:03.6]} 67. Kb8 {[%clk 0:00:05.8]} 67... Qb2 {[%clk
0:00:03.9]} 68. b7 {[%clk 0:00:06.7]} 68... Kxf6 {[%clk 0:00:04.2]} 69. Ka8
{[%clk 0:00:06.9]} 69... Qa3+ {[%clk 0:00:04.6]} 70. Kb8 {[%clk 0:00:07.3]}
70... Ke7 {[%clk 0:00:05.1]} 71. Kc7 {[%clk 0:00:06.1]} 71... Qc5+ {[%clk
0:00:05]} 72. Kb8 {[%clk 0:00:05.8]} 72... Kd7 {[%clk 0:00:05.4]} 73. Ka8 {[%clk
0:00:05.7]} 73... Qa5+ {[%clk 0:00:05.6]} 74. Kb8 {[%clk 0:00:05.8]} 74... Kc6
{[%clk 0:00:05.8]} 75. Kc8 {[%clk 0:00:06.1]} 75... Qc7# {[%clk 0:00:06.7]} 0-1

[Event "Late-Titled-Tuesday-Blitz-April-23-2024"]
[Site "Chess.com"]
[Date "2024.04.23"]
[Round "9"]
[White "Aygehovit1992"]
[Black "MKlose11"]
[Result "1-0"]
[WhiteElo "2727"]
[BlackElo "2613"]
[TimeControl "180+1"]
[EndTime "15:48:17 PDT"]
[Termination "Aygehovit1992 won by resignation"]

1. e4 {[%clk 0:02:58.3]} 1... e6 {[%clk 0:02:59.8]} 2. d4 {[%clk 0:02:58.3]}
2... d5 {[%clk 0:02:58.8]} 3. Nc3 {[%clk 0:02:59.2]} 3... Bb4 {[%clk 0:02:58.3]}
4. Ne2 {[%clk 0:02:58.6]} 4... dxe4 {[%clk 0:02:57.8]} 5. a3 {[%clk 0:02:58.6]}
5... Bxc3+ {[%clk 0:02:57.7]} 6. Nxc3 {[%clk 0:02:59.5]} 6... Nc6 {[%clk
0:02:58.3]} 7. d5 {[%clk 0:02:57.5]} 7... exd5 {[%clk 0:02:58.6]} 8. Qxd5 {[%clk
0:02:57.2]} 8... Be6 {[%clk 0:02:58.9]} 9. Qxe4 {[%clk 0:02:57.1]} 9... Nf6
{[%clk 0:02:59.3]} 10. Qh4 {[%clk 0:02:56.7]} 10... Qd4 {[%clk 0:02:59.9]} 11.
Bg5 {[%clk 0:02:54.8]} 11... Qxh4 {[%clk 0:02:54.6]} 12. Bxh4 {[%clk 0:02:55.7]}
12... Nd5 {[%clk 0:02:49.8]} 13. Nxd5 {[%clk 0:02:53.5]} 13... Bxd5 {[%clk
0:02:50]} 14. O-O-O {[%clk 0:02:54.3]} 14... Be6 {[%clk 0:02:45.5]} 15. Bb5
{[%clk 0:02:54.3]} 15... O-O {[%clk 0:02:42.8]} 16. Rhe1 {[%clk 0:02:49.1]}
16... a6 {[%clk 0:02:30.3]} 17. Bxc6 {[%clk 0:02:47.8]} 17... bxc6 {[%clk
0:02:30.5]} 18. Bg3 {[%clk 0:02:48.4]} 18... Rfc8 {[%clk 0:02:29.4]} 19. Re5
{[%clk 0:02:35.7]} 19... Bd5 {[%clk 0:02:18.3]} 20. f3 {[%clk 0:02:34.6]} 20...
Kf8 {[%clk 0:02:18.7]} 21. Bf2 {[%clk 0:02:33.5]} 21... Re8 {[%clk 0:02:15.2]}
22. Bc5+ {[%clk 0:02:33.9]} 22... Kg8 {[%clk 0:02:14.7]} 23. Rde1 {[%clk
0:02:33.9]} 23... Rxe5 {[%clk 0:02:14.4]} 24. Rxe5 {[%clk 0:02:34.8]} 24... Be6
{[%clk 0:02:13.2]} 25. b3 {[%clk 0:02:27.8]} 25... Rd8 {[%clk 0:02:12.1]} 26. c4
{[%clk 0:02:25.6]} 26... h6 {[%clk 0:01:57.8]} 27. Kc2 {[%clk 0:02:23.3]} 27...
Kh7 {[%clk 0:01:52.3]} 28. Be3 {[%clk 0:02:20.7]} 28... Kg6 {[%clk 0:01:48.6]}
29. g4 {[%clk 0:02:19.2]} 29... Kf6 {[%clk 0:01:37]} 30. Ra5 {[%clk 0:02:13.7]}
30... Bc8 {[%clk 0:01:33.9]} 31. Rc5 {[%clk 0:02:09.5]} 31... Bb7 {[%clk
0:01:33]} 32. Bf4 {[%clk 0:02:04.1]} 32... Rd7 {[%clk 0:01:32.7]} 33. h4 {[%clk
0:02:03.2]} 33... Ke7 {[%clk 0:01:28.3]} 34. h5 {[%clk 0:02:01.1]} 34... f6
{[%clk 0:01:27.7]} 35. Rf5 {[%clk 0:01:58.4]} 35... Kf7 {[%clk 0:01:25.5]} 36.
Be3 {[%clk 0:01:51.5]} 36... Re7 {[%clk 0:01:24.9]} 37. Kd3 {[%clk 0:01:45.3]}
37... Rd7+ {[%clk 0:01:22.3]} 38. Kc3 {[%clk 0:01:41.4]} 38... Re7 {[%clk
0:01:21.9]} 39. Bc5 {[%clk 0:01:36.7]} 39... Re1 {[%clk 0:01:02.8]} 40. Rf4
{[%clk 0:01:32]} 40... Bc8 {[%clk 0:00:59.9]} 41. Rd4 {[%clk 0:01:27.3]} 41...
Rf1 {[%clk 0:00:57.7]} 42. Rd3 {[%clk 0:01:20.6]} 42... f5 {[%clk 0:00:50.1]}
43. gxf5 {[%clk 0:01:21.1]} 43... Bxf5 {[%clk 0:00:50.3]} 44. Re3 {[%clk
0:01:21.6]} 44... Be6 {[%clk 0:00:37.1]} 45. Kb4 {[%clk 0:01:21.8]} 45... Rh1
{[%clk 0:00:33.5]} 46. Re5 {[%clk 0:01:20.2]} 46... Rh3 {[%clk 0:00:32.8]} 47.
Ka5 {[%clk 0:01:14.6]} 47... Rxf3 {[%clk 0:00:31.3]} 48. Re3 {[%clk 0:00:50.9]}
48... Rf5 {[%clk 0:00:21.8]} 49. b4 {[%clk 0:00:51.2]} 49... Bxc4 {[%clk
0:00:20.6]} 50. Re7+ {[%clk 0:00:51.2]} 50... Kf6 {[%clk 0:00:20.5]} 51. Rxc7
{[%clk 0:00:51.5]} 51... Rxh5 {[%clk 0:00:17.3]} 52. Rxc6+ {[%clk 0:00:51.6]}
52... Kf7 {[%clk 0:00:17.8]} 53. Rc7+ {[%clk 0:00:50.6]} 53... Kg8 {[%clk
0:00:16.9]} 54. Kb6 {[%clk 0:00:51.2]} 54... Rh3 {[%clk 0:00:15.8]} 55. Bd4
{[%clk 0:00:50.1]} 55... g5 {[%clk 0:00:14.5]} 56. Rxc4 {[%clk 0:00:49.4]} 56...
Rxa3 {[%clk 0:00:13.2]} 57. Rc6 {[%clk 0:00:44.5]} 57... Kh7 {[%clk 0:00:11.8]}
58. Kb7 {[%clk 0:00:44.8]} 58... h5 {[%clk 0:00:11.5]} 59. Rxa6 {[%clk
0:00:44.9]} 59... Rb3 {[%clk 0:00:09.9]} 60. Bc5 {[%clk 0:00:27.2]} 60... h4
{[%clk 0:00:10.1]} 61. Kc6 {[%clk 0:00:22.4]} 61... g4 {[%clk 0:00:10.5]} 62. b5
{[%clk 0:00:23]} 62... h3 {[%clk 0:00:09.7]} 63. Ra7+ {[%clk 0:00:21.3]} 63...
Kg6 {[%clk 0:00:09.9]} 64. Bd6 {[%clk 0:00:20.4]} 64... g3 {[%clk 0:00:08.9]}
65. Ra8 {[%clk 0:00:11.7]} 65... g2 {[%clk 0:00:05.2]} 66. Rg8+ {[%clk
0:00:10.7]} 66... Kh7 {[%clk 0:00:04.8]} 67. Rg4 {[%clk 0:00:09.6]} 67... Rc3+
{[%clk 0:00:05.3]} 68. Kd7 {[%clk 0:00:09.2]} 68... Rc1 {[%clk 0:00:05.9]} 69.
Bh2 {[%clk 0:00:04.9]} 69... Rh1 {[%clk 0:00:05.9]} 70. b6 {[%clk 0:00:04.5]}
70... Rxh2 {[%clk 0:00:06.3]} 71. b7 {[%clk 0:00:04.4]} 71... g1=Q {[%clk
0:00:06.7]} 72. Rxg1 {[%clk 0:00:03.3]} 72... Rb2 {[%clk 0:00:07.6]} 73. Kc7
{[%clk 0:00:02.7]} 73... Kh6 {[%clk 0:00:07.2]} 74. Rh1 {[%clk 0:00:03]} 74...
Rc2+ {[%clk 0:00:06]} 75. Kd8 {[%clk 0:00:02.6]} 75... Rd2+ {[%clk 0:00:06.3]}
76. Kc8 {[%clk 0:00:03.2]} 76... Rc2+ {[%clk 0:00:06.6]} 77. Kb8 {[%clk
0:00:03.6]} 77... h2 {[%clk 0:00:05.7]} 78. Ka7 {[%clk 0:00:03]} 78... Ra2+
{[%clk 0:00:06]} 79. Kb6 {[%clk 0:00:03.2]} 79... Rb2+ {[%clk 0:00:06.9]} 80.
Kc7 {[%clk 0:00:03.6]} 80... Rc2+ {[%clk 0:00:07.4]} 81. Kd7 {[%clk 0:00:04.2]}
81... Rd2+ {[%clk 0:00:07.9]} 82. Ke7 {[%clk 0:00:04.7]} 82... Re2+ {[%clk
0:00:08]} 83. Kf7 {[%clk 0:00:05.2]} 83... Rf2+ {[%clk 0:00:06.3]} 84. Kg8
{[%clk 0:00:05.5]} 84... Rg2+ {[%clk 0:00:06.4]} 85. Kh8 {[%clk 0:00:05.3]}
85... Rc2 {[%clk 0:00:04.8]} 86. Rxh2+ {[%clk 0:00:05.2]} 86... Rxh2 {[%clk
0:00:05.7]} 87. b8=Q {[%clk 0:00:05.4]} 87... Kg5+ {[%clk 0:00:06.6]} 88. Qxh2
{[%clk 0:00:05.1]} 1-0

[Event "Late-Titled-Tuesday-Blitz-April-23-2024"]
[Site "Chess.com"]
[Date "2024.04.23"]
[Round "9"]
[White "Sargsyan_Shant"]
[Black "Gravity_Chess"]
[Result "0-1"]
[WhiteElo "2954"]
[BlackElo "2886"]
[TimeControl "180+1"]
[EndTime "15:48:22 PDT"]
[Termination "Gravity_Chess won by resignation"]

1. c4 {[%clk 0:03:00.2]} 1... g6 {[%clk 0:02:59.3]} 2. h4 {[%clk 0:03:00.1]}
2... Bg7 {[%clk 0:03:00.2]} 3. h5 {[%clk 0:03:00.6]} 3... c6 {[%clk 0:02:56]} 4.
d4 {[%clk 0:02:58.7]} 4... d5 {[%clk 0:02:56.4]} 5. h6 {[%clk 0:02:59.3]} 5...
Bf6 {[%clk 0:02:56.5]} 6. Nc3 {[%clk 0:02:58.5]} 6... e6 {[%clk 0:02:56]} 7. Nf3
{[%clk 0:02:58.7]} 7... Ne7 {[%clk 0:02:47.8]} 8. Bg5 {[%clk 0:02:58.4]} 8...
Bxg5 {[%clk 0:02:46.8]} 9. Nxg5 {[%clk 0:02:59.3]} 9... Nf5 {[%clk 0:02:47.3]}
10. Nf3 {[%clk 0:02:59]} 10... O-O {[%clk 0:02:45.1]} 11. e3 {[%clk 0:02:59.2]}
11... Nd7 {[%clk 0:02:41.2]} 12. Bd3 {[%clk 0:02:59.4]} 12... Nd6 {[%clk
0:02:36.7]} 13. c5 {[%clk 0:02:57.5]} 13... Nf5 {[%clk 0:02:37.4]} 14. b4 {[%clk
0:02:56.4]} 14... a5 {[%clk 0:02:36.4]} 15. a3 {[%clk 0:02:56.3]} 15... axb4
{[%clk 0:02:18.2]} 16. axb4 {[%clk 0:02:57.2]} 16... Rxa1 {[%clk 0:02:18.8]} 17.
Qxa1 {[%clk 0:02:56.9]} 17... Qf6 {[%clk 0:02:19.7]} 18. Ne2 {[%clk 0:02:45.9]}
18... Re8 {[%clk 0:02:18.3]} 19. Bxf5 {[%clk 0:02:43.6]} 19... exf5 {[%clk
0:02:09.8]} 20. Nf4 {[%clk 0:02:44]} 20... Nf8 {[%clk 0:02:03]} 21. Ne5 {[%clk
0:02:43.8]} 21... Qg5 {[%clk 0:01:39.7]} 22. Kd2 {[%clk 0:02:37.5]} 22... Qe7
{[%clk 0:00:54.4]} 23. b5 {[%clk 0:02:32]} 23... f6 {[%clk 0:00:51.8]} 24. Ned3
{[%clk 0:02:29.9]} 24... g5 {[%clk 0:00:50.9]} 25. Ne2 {[%clk 0:02:28.6]} 25...
f4 {[%clk 0:00:46.4]} 26. Nexf4 {[%clk 0:02:19]} 26... gxf4 {[%clk 0:00:46.2]}
27. Nxf4 {[%clk 0:02:19.9]} 27... Ne6 {[%clk 0:00:38.4]} 28. Nd3 {[%clk
0:02:15.6]} 28... Ng5 {[%clk 0:00:38]} 29. Qa4 {[%clk 0:01:58.7]} 29... Bd7
{[%clk 0:00:36.6]} 30. b6 {[%clk 0:01:57.6]} 30... Ne4+ {[%clk 0:00:35.4]} 31.
Kc2 {[%clk 0:01:44.1]} 31... Bf5 {[%clk 0:00:35]} 32. Kb2 {[%clk 0:01:42.4]}
32... Ng3 {[%clk 0:00:28.7]} 33. Rd1 {[%clk 0:01:42.2]} 33... Bxd3 {[%clk
0:00:21.9]} 34. Rxd3 {[%clk 0:01:43.1]} 34... Nf5 {[%clk 0:00:22.3]} 35. Ra3
{[%clk 0:01:40.8]} 35... Nxh6 {[%clk 0:00:21.3]} 36. Qc2 {[%clk 0:01:41.3]}
36... Qe4 {[%clk 0:00:17.1]} 37. Qxe4 {[%clk 0:01:28]} 37... Rxe4 {[%clk
0:00:16.7]} 38. Ra8+ {[%clk 0:01:28.3]} 38... Kf7 {[%clk 0:00:13.4]} 39. Rb8
{[%clk 0:01:18.6]} 39... Re7 {[%clk 0:00:13.2]} 40. e4 {[%clk 0:00:52.7]} 40...
Ke6 {[%clk 0:00:06.9]} 41. f3 {[%clk 0:00:51.2]} 41... f5 {[%clk 0:00:06.7]} 42.
e5 {[%clk 0:00:45.6]} 42... f4 {[%clk 0:00:07.2]} 43. Kc3 {[%clk 0:00:46]} 43...
Nf5 {[%clk 0:00:07.4]} 44. Rf8 {[%clk 0:00:43.5]} 44... Rf7 {[%clk 0:00:07.6]}
45. Re8+ {[%clk 0:00:43.3]} 45... Re7 {[%clk 0:00:04.8]} 46. Rf8 {[%clk
0:00:42.9]} 46... Rf7 {[%clk 0:00:03.3]} 47. Re8+ {[%clk 0:00:43.3]} 47... Ne7
{[%clk 0:00:04]} 48. Rb8 {[%clk 0:00:41.9]} 48... Ng6 {[%clk 0:00:04.1]} 49. Kd3
{[%clk 0:00:38]} 49... Nh4 {[%clk 0:00:03.7]} 50. Rg8 {[%clk 0:00:38.6]} 50...
Ng6 {[%clk 0:00:02.8]} 51. Re8+ {[%clk 0:00:38.7]} 51... Re7 {[%clk 0:00:02.5]}
52. Rb8 {[%clk 0:00:39.1]} 52... Rf7 {[%clk 0:00:02.7]} 53. Ke2 {[%clk
0:00:38.3]} 53... Kf5 {[%clk 0:00:03.2]} 54. Rc8 {[%clk 0:00:33.7]} 54... Nf8
{[%clk 0:00:02.3]} 55. Kd3 {[%clk 0:00:31.2]} 55... Ne6 {[%clk 0:00:01.9]} 56.
Ra8 {[%clk 0:00:24.2]} 56... Rg7 {[%clk 0:00:02.5]} 57. Ra2 {[%clk 0:00:24]}
57... Rg3 {[%clk 0:00:02.3]} 58. Ra7 {[%clk 0:00:22.3]} 58... Rg7 {[%clk
0:00:03.2]} 59. Ra2 {[%clk 0:00:22.4]} 59... h5 {[%clk 0:00:03.9]} 60. Kc3
{[%clk 0:00:21.2]} 60... h4 {[%clk 0:00:04.3]} 61. Kd3 {[%clk 0:00:21.8]} 61...
Rg3 {[%clk 0:00:04.1]} 62. Ra7 {[%clk 0:00:20.8]} 62... Rg7 {[%clk 0:00:05]} 63.
Ra2 {[%clk 0:00:20.9]} 63... h3 {[%clk 0:00:05.3]} 64. gxh3 {[%clk 0:00:21.3]}
64... Rh7 {[%clk 0:00:06]} 65. Rh2 {[%clk 0:00:20]} 65... Ng5 {[%clk 0:00:06.2]}
66. h4 {[%clk 0:00:13.5]} 66... Nxf3 {[%clk 0:00:05.9]} 67. Rf2 {[%clk
0:00:14.2]} 67... Nxh4 {[%clk 0:00:05.7]} 68. Rh2 {[%clk 0:00:14.8]} 68... Rh8
{[%clk 0:00:05.4]} 69. Ke2 {[%clk 0:00:13.3]} 69... Ng6 {[%clk 0:00:04.7]} 70.
Rg2 {[%clk 0:00:14]} 70... Rh3 {[%clk 0:00:04.4]} 71. Rg1 {[%clk 0:00:13.5]}
71... Re3+ {[%clk 0:00:04.1]} 72. Kd2 {[%clk 0:00:14.1]} 72... Re4 {[%clk
0:00:03.9]} 73. Kc3 {[%clk 0:00:14.4]} 73... f3 {[%clk 0:00:03.9]} 74. Rh1
{[%clk 0:00:14.9]} 74... f2 {[%clk 0:00:03.7]} 75. Rf1 {[%clk 0:00:15.3]} 75...
Re2 {[%clk 0:00:03.5]} 76. Kd3 {[%clk 0:00:15.3]} 76... Ra2 {[%clk 0:00:04.2]}
77. Ke3 {[%clk 0:00:15.7]} 77... Nf4 {[%clk 0:00:04.8]} 78. Kf3 {[%clk
0:00:14.8]} 78... Ne6 {[%clk 0:00:04.8]} 79. Ke3 {[%clk 0:00:15.5]} 79... Rb2
{[%clk 0:00:04.9]} 80. Rh1 {[%clk 0:00:15.1]} 80... Rb3+ {[%clk 0:00:05.2]} 81.
Kxf2 {[%clk 0:00:15.6]} 81... Nxd4 {[%clk 0:00:05.8]} 82. Rh7 {[%clk 0:00:15.9]}
82... Ne6 {[%clk 0:00:05.4]} 83. Rxb7 {[%clk 0:00:14.9]} 83... Nxc5 {[%clk
0:00:05.7]} 84. Rc7 {[%clk 0:00:14.2]} 84... Rxb6 {[%clk 0:00:05.6]} 85. Re7
{[%clk 0:00:14.7]} 85... Ne6 {[%clk 0:00:05.6]} 86. Ke3 {[%clk 0:00:14.6]} 86...
Kxe5 {[%clk 0:00:06.2]} 0-1